bitfinex-derivatives/quotes_SOLF0:USTF0_20241107
["timestamp","ask_amount","ask_price","bid_price","bid_amount"]
[1730983039565,2.6695,187.22,187.17,9.23171387]
[1730983043572,2.6695,187.22,187.19,6.56161387]
[1730983044972,2.6695,187.21,187.19,6.56161387]
[1730983045565,2.6698,187.2,187.16,6.5859]
[1730983045769,6.56161387,187.21,187.16,3.9157]
[1730983046182,2.6698,187.19,187.16,3.9157]
[1730983046775,2.6698,187.19,187.16,6.586]
[1730983046970,2.6697,187.2,187.17,6.56161387]
[1730983048168,2.6697,187.2,187.17,9.23171387]
[1730983048680,2.6697,187.2,187.17,2.6701]
[1730983048878,2.6697,187.2,187.17,9.23171387]
[1730983052271,2.6698,187.19,187.17,9.23171387]
[1730983054185,6.56161387,187.23,187.17,9.23171387]
[1730983054382,2.6697,187.2,187.17,9.23171387]
[1730983057884,2.6697,187.2,187.16,3.9157]
[1730983057885,2.6698,187.19,187.16,2.6073]
[1730983058686,2.6698,187.19,187.16,5.2776]
[1730983059683,2.6697,187.2,187.17,9.23171387]
[1730983060383,6.56161387,187.23,187.17,6.56161387]
[1730983060577,2.6696,187.21,187.18,2.6699]
[1730983061494,2.6696,187.21,187.17,9.23171387]
[1730983061785,6.56161387,187.23,187.16,2.6073]
[1730983062378,2.6698,187.2,187.16,2.6073]
[1730983062774,2.6698,187.2,187.16,5.2775]
[1730983062976,6.56161387,187.23,187.16,2.6073]
[1730983063182,2.6696,187.21,187.16,2.6073]
[1730983063384,2.6696,187.21,187.17,6.56161387]
[1730983063685,2.6696,187.21,187.17,9.23171387]
[1730983064083,6.56161387,187.23,187.17,6.56161387]
[1730983064289,5.8893056,187.29,187.16,2.6073]
[1730983064290,5.8893056,187.29,187.19,6.56161387]
[1730983064485,6.56161387,187.26,187.19,6.56161387]
[1730983064884,2.6692,187.24,187.19,9.23141387]
[1730983073091,9.23081387,187.24,187.17,7.82591387]
[1730983073281,2.6692,187.24,187.18,2.6699]
[1730983073486,9.23081387,187.24,187.18,2.6699]
[1730983074689,2.62,187.27,187.2,2.6697]
[1730983074690,2.6691,187.25,187.2,2.6697]
[1730983074890,9.23071387,187.25,187.2,2.6697]
[1730983075787,2.6692,187.24,187.2,2.6697]
[1730983079785,6.56161387,187.27,187.21,6.56161387]
[1730983079989,6.56161387,187.27,187.21,9.23101387]
[1730983080500,2.6689,187.26,187.21,9.23101387]
[1730983080997,2.6689,187.26,187.21,6.56161387]
[1730983081189,2.6689,187.26,187.22,2.6694]
[1730983081389,2.6686,187.28,187.22,6.56161387]
[1730983081786,2.6686,187.28,187.2,2.62]
[1730983081787,2.6686,187.28,187.24,6.56161387]
[1730983082998,2.6684,187.3,187.24,9.23071387]
[1730983083192,6.56161387,187.31,187.24,9.23071387]
[1730983084197,6.56161387,187.29,187.24,9.23071387]
[1730983084496,2.6686,187.28,187.23,2.6692]
[1730983085194,2.6686,187.28,187.24,6.56161387]
[1730983085395,2.6686,187.28,187.24,9.23071387]
[1730983085594,6.56161387,187.29,187.24,9.23071387]
[1730983085790,2.6684,187.3,187.25,2.6689]
[1730983088304,2.6684,187.3,187.24,6.56161387]
[1730983088500,6.56161387,187.3,187.26,2.6688]
[1730983091406,9.22991387,187.3,187.26,2.6688]
[1730983095808,2.6683,187.3,187.27,2.6686]
[1730983096304,6.56161387,187.32,187.27,2.6686]
[1730983096705,6.56161387,187.33,187.27,2.6686]
[1730983097406,6.56161387,187.33,187.28,6.56161387]
[1730983097909,2.668,187.32,187.28,9.23011387]
[1730983100511,2.668,187.32,187.28,6.56161387]
[1730983112321,2.668,187.32,187.27,5.2886]
[1730983112522,2.668,187.32,187.28,6.56161387]
[1730983112716,2.62,187.36,187.27,5.2886]
[1730983112717,2.62,187.36,187.29,6.56161387]
[1730983112918,2.6679,187.33,187.29,6.56161387]
[1730983115732,2.6679,187.33,187.29,7.85771387]
[1730983116637,2.6677,187.34,187.29,10.52601387]
[1730983117137,2.6677,187.34,187.31,6.56161387]
[1730983117535,2.6676,187.35,187.31,6.56161387]
[1730983117737,2.6676,187.35,187.32,6.56161387]
[1730983121743,2.6676,187.35,187.3,2.6682]
[1730983121941,6.56161387,187.34,187.29,1.2961]
[1730983122246,6.56161387,187.34,187.28,6.56161387]
[1730983122440,2.6681,187.32,187.28,6.56161387]
[1730983124544,2.6681,187.31,187.28,6.56161387]
[1730983126248,2.6681,187.31,187.28,9.23011387]
[1730983128443,2.6681,187.31,187.3,6.56161387]
[1730983129040,2.62,187.39,187.3,6.56161387]
[1730983129041,2.668,187.32,187.3,6.56161387]
[1730983129551,2.6678,187.34,187.31,6.56161387]
[1730983130152,9.18161387,187.39,187.31,6.56161387]
[1730983130353,2.6679,187.33,187.31,6.56161387]
[1730983131654,2.6679,187.33,187.29,2.6683]
[1730983131852,2.6679,187.33,187.3,6.56161387]
[1730983132248,2.6681,187.32,187.28,2.6684]
[1730983132453,2.6681,187.32,187.29,6.56161387]
[1730983136960,2.6681,187.31,187.29,6.56161387]
[1730983138855,2.6681,187.31,187.29,9.23001387]
[1730983139964,9.18161387,187.37,187.29,6.56161387]
[1730983140162,2.6679,187.33,187.31,6.56161387]
[1730983141461,2.6679,187.33,187.3,9.22991387]
[1730983144457,2.6679,187.33,187.32,6.56161387]
[1730983145464,9.18161387,187.37,187.32,6.56161387]
[1730983145465,2.62,187.37,187.32,6.56161387]
[1730983146767,2.6676,187.35,187.32,6.56161387]
[1730983149260,5.87100405,187.42,187.32,6.56161387]
[1730983149469,7.2227,187.43,187.34,6.56161387]
[1730983149470,6.56161387,187.4,187.34,6.56161387]
[1730983150166,2.62,187.41,187.34,6.56161387]
[1730983150664,6.56161387,187.4,187.34,6.56161387]
[1730983150868,2.6674,187.37,187.34,6.56161387]
[1730983151868,6.56161387,187.4,187.34,6.56161387]
[1730983151869,2.6674,187.36,187.34,6.56161387]
[1730983152573,2.6672,187.38,187.34,6.56161387]
[1730983154267,2.6671,187.39,187.36,6.56161387]
[1730983154470,6.56161387,187.39,187.32,5.2679]
[1730983154775,6.56161387,187.39,187.33,6.56161387]
[1730983154988,2.6673,187.38,187.33,6.56161387]
[1730983155470,6.56161387,187.39,187.33,6.56161387]
[1730983155674,2.6673,187.37,187.33,6.56161387]
[1730983157077,2.6674,187.36,187.33,6.56161387]
[1730983163468,2.6673,187.37,187.33,9.22931387]
[1730983163670,6.56161387,187.41,187.35,6.56161387]
[1730983164073,2.6674,187.37,187.35,6.56161387]
[1730983169780,2.6675,187.36,187.32,2.6]
[1730983170081,6.56161387,187.36,187.27,21.55568617]
[1730983170377,2.6679,187.33,187.29,6.56161387]
[1730983171373,2.6679,187.33,187.31,6.56161387]
[1730983171575,2.6677,187.34,187.31,6.56161387]
[1730983171772,6.56161387,187.39,187.33,6.56161387]
[1730983173476,2.6675,187.36,187.33,6.56161387]
[1730983175687,6.56161387,187.39,187.27,24.15568617]
[1730983175893,2.6,187.4,187.32,6.56161387]
[1730983175894,2.6678,187.34,187.32,6.56161387]
[1730983181794,2.6676,187.35,187.33,6.56161387]
[1730983189998,2.6674,187.37,187.33,6.56161387]
[1730983190198,2.6674,187.37,187.35,6.56161387]
[1730983190806,2.6672,187.38,187.35,6.56161387]
[1730983195506,2.6672,187.38,187.33,2.6678]
[1730983195708,2.6672,187.38,187.35,6.56161387]
[1730983197606,5.87100405,187.43,187.37,6.56161387]
[1730983197905,2.6667,187.42,187.39,6.56161387]
[1730983198108,12.43261792,187.44,187.39,6.56161387]
[1730983198811,2.6666,187.43,187.39,6.56161387]
[1730983200600,2.6666,187.42,187.37,9.22881387]
[1730983200800,12.43261792,187.44,187.37,6.56161387]
[1730983200998,6.56161387,187.42,187.35,2.6]
[1730983201200,2.6669,187.4,187.35,2.6]
[1730983201411,6.56161387,187.4,187.35,9.16161387]
[1730983201905,2.6671,187.38,187.32,1.3234]
[1730983202113,6.56161387,187.39,187.32,7.88501387]
[1730983202498,2.6673,187.37,187.32,10.55291387]
[1730983203299,2.6674,187.36,187.32,1.3234]
[1730983203508,2.6674,187.36,187.31,5.1094]
[1730983203704,2.6674,187.36,187.32,6.56161387]
[1730983205004,2.6,187.41,187.28,1.2117]
[1730983205005,2.6679,187.33,187.29,6.56161387]
[1730983205202,2.6,187.41,187.3,6.56161387]
[1730983205406,6.56161387,187.37,187.3,6.56161387]
[1730983206705,2.6676,187.35,187.3,9.22981387]
[1730983207517,6.56161387,187.37,187.3,6.56161387]
[1730983207714,2.6677,187.34,187.3,6.56161387]
[1730983210715,6.56161387,187.37,187.28,2.4827]
[1730983210908,6.56161387,187.34,187.28,7.83261387]
[1730983211415,2.6683,187.3,187.26,6.56161387]
[1730983211608,2.6683,187.3,187.24,2.6]
[1730983211810,6.56161387,187.32,187.26,6.56161387]
[1730983211811,2.6685,187.29,187.26,6.56161387]
[1730983212416,2.6685,187.29,187.28,6.56161387]
[1730983212817,2.6678,187.34,187.28,6.56161387]
[1730983213018,6.56161387,187.34,187.28,6.56161387]
[1730983213218,9.16161387,187.36,187.3,6.56161387]
[1730983213420,2.6678,187.34,187.3,6.56161387]
[1730983213810,9.16161387,187.36,187.3,6.56161387]
[1730983214117,2.6679,187.33,187.3,6.56161387]
[1730983214409,2.6676,187.35,187.31,6.56161387]
[1730983215519,2.6,187.36,187.31,6.56161387]
[1730983215711,2.6674,187.36,187.31,9.22971387]
[1730983215910,2.6674,187.36,187.25,1.303]
[1730983215911,2.6674,187.36,187.33,6.56161387]
[1730983216214,5.2673,187.37,187.33,6.56161387]
[1730983216516,2.6673,187.37,187.33,6.56161387]
[1730983217113,2.6675,187.36,187.33,6.56161387]
[1730983218217,12.43261792,187.39,187.29,1.2195]
[1730983218218,2.6677,187.34,187.29,1.2195]
[1730983218413,2.6677,187.34,187.29,7.78111387]
[1730983218915,6.56161387,187.35,187.26,2.6]
[1730983219120,9.22961387,187.33,187.27,6.56161387]
[1730983219423,9.22961387,187.33,187.28,2.6685]
[1730983219622,2.6681,187.32,187.22,1.2422]
[1730983219810,6.56161387,187.31,187.26,2.6688]
[1730983220215,9.22971387,187.31,187.26,2.6688]
[1730983220919,2.6687,187.27,187.23,2.6692]
[1730983221125,6.56161387,187.29,187.22,1.2422]
[1730983221423,6.56161387,187.28,187.22,7.80381387]
[1730983221823,9.16161387,187.3,187.24,6.56161387]
[1730983223825,2.6685,187.29,187.24,9.23071387]
[1730983224118,2.6685,187.29,187.26,6.56161387]
[1730983224720,9.16161387,187.3,187.26,6.56161387]
[1730983224721,2.6,187.3,187.26,6.56161387]
[1730983224927,2.6681,187.31,187.27,6.56161387]
[1730983225420,2.6681,187.31,187.26,2.6688]
[1730983225611,2.6681,187.31,187.27,6.56161387]
[1730983226017,2.6681,187.31,187.27,9.23021387]
[1730983226416,9.16161387,187.33,187.27,9.23021387]
[1730983226622,9.16161387,187.33,187.27,2.6686]
[1730983226623,2.6,187.33,187.27,2.6686]
[1730983226823,2.6,187.33,187.28,6.56161387]
[1730983227220,2.6,187.33,187.22,1.2422]
[1730983227221,9.16161387,187.36,187.3,6.56161387]
[1730983227414,5.87100405,187.38,187.3,6.56161387]
[1730983227726,9.16161387,187.37,187.3,6.56161387]
[1730983228119,2.6677,187.34,187.3,9.22971387]
[1730983228327,9.16161387,187.37,187.3,9.22971387]
[1730983228719,2.6677,187.35,187.3,9.22971387]
[1730983229519,2.6,187.37,187.32,6.56161387]
[1730983230219,2.6676,187.35,187.29,2.6683]
[1730983230425,2.6676,187.35,187.31,6.56161387]
[1730983233134,9.22941387,187.34,187.28,9.23001387]
[1730983233430,6.56161387,187.34,187.28,9.23001387]
[1730983233830,2.6679,187.33,187.28,6.56161387]
[1730983235035,2.6,187.37,187.26,1.2316]
[1730983235036,2.6682,187.31,187.26,1.2316]
[1730983235238,2.6682,187.31,187.26,7.79321387]
[1730983236927,2.6683,187.3,187.26,7.79321387]
[1730983237130,6.56161387,187.31,187.26,1.2316]
[1730983237624,2.6685,187.29,187.26,1.2316]
[1730983238528,2.6,187.32,187.26,7.79321387]
[1730983238723,2.6684,187.3,187.26,7.79321387]
[1730983239736,2.6681,187.31,187.26,10.46201387]
[1730983240029,2.6,187.34,187.29,6.56161387]
[1730983240234,2.6,187.34,187.29,2.6683]
[1730983240428,2.6,187.34,187.3,6.56161387]
[1730983241029,5.2678,187.34,187.3,6.56161387]
[1730983241435,2.6,187.34,187.3,6.56161387]
[1730983242737,2.6679,187.33,187.3,6.56161387]
[1730983245236,2.6677,187.35,187.3,9.22981387]
[1730983246036,2.6678,187.33,187.28,2.6685]
[1730983246334,6.56161387,187.33,187.26,1.2316]
[1730983246627,6.56161387,187.33,187.26,7.79321387]
[1730983246835,2.6683,187.3,187.26,7.79321387]
[1730983247735,2.6683,187.3,187.26,10.46191387]
[1730983250225,6.56161387,187.31,187.26,1.2316]
[1730983250226,2.6684,187.29,187.26,1.2316]
[1730983250435,2.6684,187.29,187.26,7.79321387]
[1730983251433,2.6683,187.3,187.26,10.46191387]
[1730983253930,6.56161387,187.32,187.26,10.46191387]
[1730983253931,2.6682,187.31,187.26,10.46191387]
[1730983254141,6.56161387,187.32,187.26,10.46191387]
[1730983254330,6.56161387,187.3,187.25,11.83051387]
[1730983254531,2.6685,187.29,187.25,11.83051387]
[1730983255533,2.6686,187.28,187.25,11.83051387]
[1730983262736,2.6685,187.29,187.26,2.6687]
[1730983262934,6.56161387,187.32,187.26,9.23031387]
[1730983263340,6.56161387,187.32,187.26,6.56161387]
[1730983263542,2.6683,187.3,187.27,2.6686]
[1730983266438,2.668,187.32,187.28,9.23011387]
[1730983272353,2.6,187.35,187.28,6.56161387]
[1730983272846,6.56161387,187.34,187.28,6.56161387]
[1730983273253,2.6678,187.33,187.29,2.6684]
[1730983273645,6.56161387,187.34,187.29,2.6684]
[1730983273845,2.668,187.32,187.28,9.23011387]
[1730983274757,9.22941387,187.34,187.3,6.56161387]
[1730983274951,5.8728197,187.37,187.3,6.56161387]
[1730983274952,6.56161387,187.36,187.3,6.56161387]
[1730983275748,6.56161387,187.36,187.31,6.56161387]
[1730983276753,2.6677,187.35,187.31,9.22971387]
[1730983277352,6.56161387,187.36,187.31,9.22971387]
[1730983277560,9.22911387,187.36,187.31,9.22971387]
[1730983277860,6.56161387,187.36,187.31,9.22971387]
[1730983278152,2.6676,187.35,187.31,9.22971387]
[1730983278658,6.56161387,187.36,187.31,9.22971387]
[1730983278853,8.5402197,187.37,187.31,6.56161387]
[1730983279046,8.5402197,187.37,187.23,1.3093]
[1730983279047,5.8728197,187.37,187.33,6.56161387]
[1730983279247,12.43443357,187.39,187.33,6.56161387]
[1730983279455,2.6672,187.38,187.33,9.22941387]
[1730983281159,2.6672,187.38,187.34,2.6676]
[1730983282153,2.6672,187.38,187.33,6.56161387]
[1730983282154,2.6672,187.38,187.33,9.22941387]
[1730983282552,9.22911387,187.36,187.31,3.7674]
[1730983282759,6.56161387,187.36,187.31,3.7674]
[1730983282959,6.56161387,187.34,187.31,1.2627]
[1730983283153,9.22941387,187.34,187.29,2.6]
[1730983283560,6.56161387,187.34,187.29,2.6]
[1730983283759,2.6679,187.33,187.29,2.6]
[1730983284161,6.56161387,187.32,187.29,2.6]
[1730983284362,6.56161387,187.32,187.26,6.56161387]
[1730983284569,2.6685,187.28,187.25,2.5558]
[1730983285355,6.56161387,187.28,187.25,1.2226]
[1730983285560,2.6688,187.27,187.22,9.23101387]
[1730983285956,6.56161387,187.28,187.22,9.23101387]
[1730983286163,2.6689,187.26,187.22,9.23101387]
[1730983286362,2.6689,187.26,187.24,6.56161387]
[1730983287163,2.6688,187.27,187.24,6.56161387]
[1730983288967,6.56161387,187.28,187.24,6.56161387]
[1730983289165,6.56161387,187.3,187.24,6.56161387]
[1730983289965,2.6688,187.27,187.24,6.56161387]
[1730983291159,2.6688,187.27,187.24,9.23071387]
[1730983292163,6.56161387,187.32,187.26,6.56161387]
[1730983292560,6.56161387,187.3,187.19,1.2798]
[1730983292761,2.6692,187.24,187.2,2.6696]
[1730983293661,2.6692,187.24,187.21,6.56161387]
[1730983294467,2.6693,187.23,187.21,6.56161387]
[1730983298271,2.6692,187.24,187.21,6.56161387]
[1730983298471,6.56161387,187.25,187.21,6.56161387]
[1730983298871,2.6692,187.24,187.21,6.56161387]
[1730983300880,2.6691,187.25,187.21,9.23101387]
[1730983301074,1.9622,187.32,187.21,6.56161387]
[1730983301275,2.6,187.31,187.22,6.56161387]
[1730983301473,6.56161387,187.29,187.22,9.23101387]
[1730983302384,2.6688,187.27,187.22,9.23101387]
[1730983306380,9.23041387,187.27,187.22,9.23101387]
[1730983307782,9.23041387,187.27,187.22,2.6694]
[1730983308185,6.56161387,187.27,187.22,2.6694]
[1730983308382,1.6689,187.26,187.22,2.6694]
[1730983308684,1.6689,187.26,187.22,1.6694]
[1730983309488,9.16161387,187.27,187.22,1.6694]
[1730983310077,2.6689,187.26,187.22,1.5694]
[1730983310481,2.6689,187.26,187.21,6.56161387]
[1730983310785,2.6689,187.26,187.23,2.6693]
[1730983311286,2.5689,187.26,187.23,2.6693]
[1730983311481,5.2687,187.27,187.23,2.6693]
[1730983311687,9.16161387,187.29,187.23,9.23091387]
[1730983312082,2.6686,187.28,187.23,9.23091387]
[1730983312593,9.16161387,187.29,187.23,9.23091387]
[1730983312888,2.6687,187.27,187.23,9.23091387]
[1730983313091,2.6,187.29,187.23,6.56161387]
[1730983313387,2.6,187.29,187.24,2.6691]
[1730983314495,6.56161387,187.3,187.24,2.6691]
[1730983314787,2.6687,187.27,187.24,2.6691]
[1730983317193,2.6687,187.27,187.23,9.23081387]
[1730983317692,2.6687,187.27,187.23,2.6692]
[1730983324689,5.86927889,187.33,187.22,6.56161387]
[1730983324891,2.6685,187.29,187.24,6.56161387]
[1730983325599,2.6685,187.29,187.25,2.6689]
[1730983329902,6.56161387,187.3,187.24,2.6691]
[1730983329903,2.6686,187.28,187.24,2.6691]
[1730983330505,2.6686,187.28,187.25,2.669]
[1730983330898,2.6684,187.29,187.25,6.56161387]
[1730983331100,2.6,187.31,187.26,2.6687]
[1730983331297,2.6,187.31,187.25,6.56161387]
[1730983331608,5.2682,187.31,187.25,6.56161387]
[1730983331797,5.2682,187.31,187.27,2.6687]
[1730983332197,5.2682,187.31,187.25,6.56161387]
[1730983332398,5.2682,187.31,187.26,2.6687]
[1730983335606,2.6682,187.31,187.26,2.6687]
[1730983336303,9.22971387,187.32,187.27,2.6686]
[1730983337399,6.56161387,187.32,187.27,2.6686]
[1730983337605,2.6681,187.31,187.27,2.6686]
[1730983340210,2.6683,187.3,187.26,2.6687]
[1730983340511,2.6683,187.3,187.25,6.56161387]
[1730983341702,2.6683,187.3,187.27,2.6687]
[1730983344216,2.6682,187.31,187.27,2.6687]
[1730983351419,6.56161387,187.32,187.28,2.6684]
[1730983351420,2.668,187.32,187.28,2.6684]
[1730983352930,2.6681,187.31,187.28,2.6684]
[1730983353227,6.56161387,187.33,187.28,2.6684]
[1730983353926,9.22951387,187.33,187.28,2.6684]
[1730983354121,6.56161387,187.33,187.28,2.6684]
[1730983355822,2.668,187.32,187.28,2.6684]
[1730983357321,2.668,187.32,187.29,2.6684]
[1730983358626,2.6677,187.34,187.29,6.56161387]
[1730983358826,6.56161387,187.35,187.29,6.56161387]
[1730983359216,2.58,187.37,187.3,2.6682]
[1730983359420,6.56161387,187.35,187.3,2.6682]
[1730983360028,2.6678,187.34,187.3,2.6682]
[1730983360426,6.56161387,187.37,187.32,2.668]
[1730983360727,2.6675,187.36,187.32,2.668]
[1730983362225,9.22921387,187.35,187.29,6.56161387]
[1730983362426,6.56161387,187.35,187.29,6.56161387]
[1730983362737,6.56161387,187.35,187.26,3.7863]
[1730983362933,6.56161387,187.35,187.29,2.6683]
[1730983364535,6.56161387,187.33,187.27,9.23021387]
[1730983365133,2.6681,187.31,187.27,9.23021387]
[1730983366332,5.89264622,187.38,187.3,6.56161387]
[1730983366523,5.89264622,187.38,187.26,3.7863]
[1730983366524,5.89264622,187.38,187.32,6.56161387]
[1730983366831,2.6673,187.37,187.32,9.22951387]
[1730983367222,12.45426009,187.39,187.32,9.22951387]
[1730983367533,2.6674,187.36,187.32,9.22951387]
[1730983370433,2.6674,187.36,187.32,2.6679]
[1730983372646,2.668,187.32,187.28,2.6684]
[1730983372832,9.22961387,187.32,187.28,2.6684]
[1730983374840,9.22961387,187.32,187.28,1.6684]
[1730983375541,8.22961387,187.32,187.28,1.6684]
[1730983375743,8.22961387,187.32,187.28,0.6684]
[1730983375939,8.22961387,187.32,187.27,6.56161387]
[1730983376137,6.56161387,187.32,187.27,6.56161387]
[1730983376536,5.56161387,187.32,187.27,6.56161387]
[1730983376932,5.56161387,187.32,187.27,6.06161387]
[1730983377443,5.06161387,187.32,187.27,6.06161387]
[1730983377838,2.6682,187.31,187.28,2.6685]
[1730983379844,2.58,187.35,187.28,2.6685]
[1730983379845,2.6678,187.33,187.29,2.6683]
[1730983380250,2.6678,187.33,187.28,6.56161387]
[1730983380449,2.6678,187.33,187.3,2.6682]
[1730983380749,2.6677,187.34,187.28,6.56161387]
[1730983380943,2.6677,187.34,187.3,9.22981387]
[1730983382649,6.56161387,187.33,187.28,6.56161387]
[1730983382852,2.6681,187.32,187.28,2.6685]
[1730983383148,6.56161387,187.33,187.27,6.56161387]
[1730983383351,6.56161387,187.32,187.27,6.56161387]
[1730983383543,2.6682,187.31,187.26,1.2488]
[1730983384237,2.6682,187.31,187.26,3.9175]
[1730983384442,2.6682,187.31,187.26,1.2488]
[1730983384651,6.56161387,187.32,187.26,1.2488]
[1730983384850,2.6683,187.3,187.27,2.6686]
[1730983385553,2.6685,187.29,187.26,1.2488]
[1730983385853,7.89024622,187.37,187.22,2.58]
[1730983385854,6.56161387,187.3,187.22,2.58]
[1730983386055,6.56161387,187.3,187.23,6.56161387]
[1730983386353,2.6687,187.28,187.24,2.6691]
[1730983386748,2.6687,187.28,187.24,9.23071387]
[1730983387945,2.6687,187.28,187.25,2.669]
[1730983388856,6.56161387,187.3,187.25,2.669]
[1730983390750,2.6687,187.28,187.25,2.669]
[1730983390950,2.58,187.33,187.24,6.56161387]
[1730983391150,6.56161387,187.31,187.24,6.56161387]
[1730983391657,2.6685,187.29,187.25,2.6689]
[1730983392650,6.56161387,187.31,187.25,2.6689]
[1730983393549,2.6685,187.29,187.25,2.6689]
[1730983395256,2.6685,187.29,187.24,6.56161387]
[1730983396457,2.6685,187.29,187.24,9.23071387]
[1730983397049,6.56161387,187.31,187.21,5.1561]
[1730983397249,6.56161387,187.31,187.24,6.56161387]
[1730983398155,6.56161387,187.31,187.21,5.1561]
[1730983398354,6.56161387,187.31,187.25,6.56161387]
[1730983399449,7.89024622,187.37,187.27,6.56161387]
[1730983399656,9.14161387,187.34,187.27,6.56161387]
[1730983400054,2.6681,187.32,187.27,9.23021387]
[1730983406157,2.58,187.34,187.22,1.2946]
[1730983406463,2.6683,187.3,187.27,6.56161387]
[1730983407465,2.6683,187.3,187.27,9.23021387]
[1730983412266,6.56161387,187.34,187.28,6.56161387]
[1730983412465,2.6681,187.32,187.28,9.23011387]
[1730983413265,5.89264622,187.37,187.31,6.56161387]
[1730983413465,12.45426009,187.39,187.31,6.56161387]
[1730983413864,12.45426009,187.39,187.32,2.6679]
[1730983414168,5.89264622,187.39,187.32,2.6679]
[1730983414367,6.56161387,187.38,187.32,2.6679]
[1730983414566,2.6675,187.36,187.32,2.6679]
[1730983417765,5.89264622,187.39,187.28,2.6571]
[1730983417967,2.668,187.32,187.28,2.6571]
[1730983418163,2.668,187.32,187.28,9.21871387]
[1730983418669,2.6681,187.31,187.28,9.21871387]
[1730983419171,2.6681,187.31,187.28,11.88721387]
[1730983421272,2.6681,187.31,187.29,6.56161387]
[1730983423280,2.6682,187.31,187.28,5.3256]
[1730983423482,6.56161387,187.32,187.28,1.3305]
[1730983424475,2.6683,187.3,187.28,1.3305]
[1730983426276,2.6683,187.3,187.28,7.89211387]
[1730983428185,2.6685,187.28,187.25,6.56161387]
[1730983428684,2.6685,187.28,187.25,9.23051387]
[1730983429083,2.6685,187.29,187.27,6.56161387]
[1730983430384,6.56161387,187.33,187.25,2.6689]
[1730983430585,2.6685,187.28,187.26,6.56161387]
[1730983430791,2.6685,187.28,187.26,9.23041387]
[1730983431287,2.6685,187.29,187.26,9.23041387]
[1730983432484,6.56161387,187.33,187.26,6.56161387]
[1730983432682,2.6682,187.31,187.28,2.6685]
[1730983432883,2.6682,187.31,187.28,6.56161387]
[1730983433077,2.6682,187.31,187.28,9.23001387]
[1730983434990,2.668,187.32,187.29,2.6684]
[1730983435587,2.668,187.32,187.3,6.56161387]
[1730983439188,2.668,187.32,187.3,9.22991387]
[1730983440290,2.6679,187.33,187.3,9.22991387]
[1730983440492,5.89264622,187.39,187.33,2.6678]
[1730983440791,5.89264622,187.39,187.33,6.56161387]
[1730983440990,6.56161387,187.38,187.33,6.56161387]
[1730983441591,2.6675,187.36,187.33,6.56161387]
[1730983441785,5.89264622,187.39,187.33,6.56161387]
[1730983441998,12.45426009,187.39,187.33,6.56161387]
[1730983442191,12.45426009,187.39,187.33,9.22931387]
[1730983442192,2.6673,187.37,187.33,9.22931387]
[1730983442391,5.89264622,187.39,187.33,6.56161387]
[1730983442589,12.45426009,187.39,187.33,6.56161387]
[1730983442886,5.89264622,187.39,187.35,6.56161387]
[1730983443091,5.89264622,187.39,187.37,6.56161387]
[1730983443294,5.89264622,187.39,187.38,9.22871387]
[1730983443598,114.96684,187.4,187.35,2.58]
[1730983443798,114.96684,187.4,187.38,6.56161387]
[1730983444392,114.96684,187.4,187.39,2.667]
[1730983444600,114.96684,187.4,187.39,9.22861387]
[1730983447596,108.69524,187.4,187.39,9.22861387]
[1730983451898,108.69524,187.4,187.38,6.56161387]
[1730983452097,16.09155504,187.4,187.38,6.56161387]
[1730983452298,12.09095504,187.4,187.38,6.56161387]
[1730983452493,12.09095504,187.4,187.39,2.667]
[1730983452701,12.09095504,187.4,187.39,9.22861387]
[1730983453099,12.09095504,187.4,187.39,2.667]
[1730983453296,12.09095504,187.4,187.39,9.22861387]
[1730983454704,2.6657,187.48,187.43,2.6663]
[1730983454907,2.6657,187.48,187.43,9.22791387]
[1730983455602,6.56161387,187.5,187.43,9.22791387]
[1730983455805,6.56161387,187.5,187.45,2.6661]
[1730983456007,6.56161387,187.5,187.45,6.56161387]
[1730983456204,9.22701387,187.5,187.45,6.56161387]
[1730983456509,7.24861387,187.52,187.45,6.56161387]
[1730983457195,2.6653,187.51,187.48,2.6657]
[1730983458808,3.3522,187.52,187.48,2.6657]
[1730983459401,3.3522,187.52,187.48,9.22731387]
[1730983459604,3.3522,187.52,187.48,6.56161387]
[1730983459803,3.3522,187.52,187.49,2.6655]
[1730983460310,2.4936,187.54,187.5,6.56161387]